[Event "Queens Festival Europe 2022"]
[Site "Tornelo"]
[Date "2022.06.19"]
[Round "5.2"]
[White "Gueci, Tea"]
[Black "Amrayeva, Aytan"]
[Result "1-0"]
[ECO "C06"]
[WhiteElo "2248"]
[BlackElo "2143"]
[Annotator "NA RC"]
[PlyCount "85"]
[EventDate "2022.06.19"]
[EventType "swiss"]
[EventCountry "NET"]
[SourceTitle "playchess.com"]
[Source "ChessBase"]
[SourceQuality "1"]
[TimeControl "180+2"]

1. e4 {[%emt 0:00:02]} e6 {[%emt 0:00:04]} 2. d4 {[%emt 0:00:02]} d5 {[%emt 0:00:01]} 3. Nd2 {[%emt 0:00:02]} Nf6 {[%emt 0:00:02]} 4. e5 {[%emt 0:00:02]} Nfd7 {[%emt 0:00:02]} 5. Bd3 {[%emt 0:00:00]} a6 {[%emt 0:00:01]} 6. c3 {[%emt 0:00:03]} c5 {[%emt 0:00:02]} 7. Ne2 {[%emt 0:00:02]} Nc6 {[%emt 0:00:01]} 8. O-O {[%emt 0:00:04]} b5 {[%emt 0:00:03]} 9. a4 {[%emt 0:00:09]} Rb8 {[%emt 0:00:08]} 10. axb5 {[%emt 0:00:12]} axb5 {[%emt 0:00:02]} 11. f4 {[%emt 0:00:04]} Qb6 {[%emt 0:00:02]} 12. Nf3 {[%emt 0:00:02]} Be7 {[%emt 0:00:06]} 13. Be3 {[%emt 0:00:04]} g6 {[%emt 0:00:30]} 14. Bc2 {[%emt 0:00:34]} O-O {[%emt 0:00:25]} 15. dxc5 {[%emt 0:00:21]} Bxc5 {[%emt 0:00:03]} 16. Nfd4 {[%emt 0:00:04]} b4 {[%emt 0:00:09]} 17. Ba4 {[%emt 0:00:07]} Nxd4 {[%emt 0:00:17]} 18. cxd4 {[%emt 0:00:02]} Be7 {[%emt 0:00:03]} 19. Rf3 {[%emt 0:00:14]} Rd8 {[%emt 0:00:02]} 20. Rh3 {[%emt 0:00:03]} Nf8 {[%emt 0:00:03]} 21. Bb3 {[%emt 0:00:11]} Ba6 {[%emt 0:00:02]} 22. Nc1 {[%emt 0:00:03]} Rdc8 {[%emt 0:00:09]} 23. Nd3 {[%emt 0:00:02]} Bxd3 {[%emt 0:00:05]} 24. Qxd3 {[%emt 0:00:00]} Rc6 {[%emt 0:00:05]} 25. f5 {[%emt 0:00:09]} Rbc8 {[%emt 0:00:09]} 26. f6 {[%emt 0:00:03]} Bd8 {[%emt 0:00:02]} 27. Rf3 {[%emt 0:00:11]} Qb7 {[%emt 0:00:11]} 28. h4 {[%emt 0:00:03]} Ra8 {[%emt 0:00:07]} 29. Raf1 {[%emt 0:00:06]} Qa6 {[%emt 0:00:06]} 30. Qd2 {[%emt 0:00:02]} h5 {[%emt 0:00:10]} 31. g4 {[%emt 0:00:07]} hxg4 {[%emt 0:00:09]} 32. Rg3 {[%emt 0:00:01]} Rac8 {[%emt 0:00:20]} 33. Rxg4 {[%emt 0:00:01]} Qb7 {[%emt 0:00:12]} 34. Bh6 {[%emt 0:00:07]} Bb6 {[%emt 0:00:04]} 35. Bxf8 {[%emt 0:00:14]} Kxf8 {[%emt 0:00:08]} 36. Qh6+ {[%emt 0:00:02]} Ke8 {[%emt 0:00:01]} 37. h5 {[%emt 0:00:08]} Qa7 {[%emt 0:00:02]} 38. hxg6 {[%emt 0:00:05]} Bxd4+ {[%emt 0:00:02]} 39. Kh1 {[%emt 0:00:01]} Kd7 {[%emt 0:00:02]} 40. gxf7 {[%emt 0:00:04]} Bxe5 {[%emt 0:00:01]} 41. f8=Q {[%emt 0:00:05]} Rxf8 {[%emt 0:00:02]} 42. Qxf8 {[%emt 0:00:00]} Qe3 {[%emt 0:00:02]} 43. Rg7# {[%emt 0:00:03]} 1-0

[Event "Queens Festival Europe 2022"]
[Site "Tornelo"]
[Date "2022.06.19"]
[Round "5.2"]
[White "Grigoryan, Meri"]
[Black "Mammadova, Aysel"]
[Result "0-1"]
[ECO "E21"]
[WhiteElo "1993"]
[BlackElo "1893"]
[Annotator "NA RC"]
[PlyCount "132"]
[EventDate "2022.06.19"]
[EventType "swiss"]
[EventCountry "NET"]
[SourceTitle "playchess.com"]
[Source "ChessBase"]
[SourceQuality "1"]
[TimeControl "180+2"]

1. d4 {[%emt 0:00:02]} Nf6 {[%emt 0:00:05]} 2. c4 {[%emt 0:00:03]} e6 {[%emt 0:00:02]} 3. Nc3 {[%emt 0:00:01]} Bb4 {[%emt 0:00:03]} 4. Bd2 {[%emt 0:00:07]} O-O {[%emt 0:00:03]} 5. Nf3 {[%emt 0:00:03]} b6 {[%emt 0:00:02]} 6. a3 {[%emt 0:00:05]} Bxc3 {[%emt 0:00:03]} 7. Bxc3 {[%emt 0:00:00]} Ne4 {[%emt 0:00:03]} 8. Rc1 {[%emt 0:00:05]} Bb7 {[%emt 0:00:02]} 9. e3 {[%emt 0:00:01]} d6 {[%emt 0:00:02]} 10. Bd3 {[%emt 0:00:02]} Nd7 {[%emt 0:00:02]} 11. Bxe4 {[%emt 0:00:06]} Bxe4 {[%emt 0:00:03]} 12. O-O {[%emt 0:00:02]} Nf6 {[%emt 0:00:05]} 13. Nd2 {[%emt 0:00:01]} Bb7 {[%emt 0:00:06]} 14. f3 {[%emt 0:00:01]} Qe7 {[%emt 0:00:03]} 15. e4 {[%emt 0:00:02]} e5 {[%emt 0:00:02]} 16. d5 {[%emt 0:00:03]} Nd7 {[%emt 0:00:03]} 17. b4 {[%emt 0:00:07]} f5 {[%emt 0:00:06]} 18. Re1 {[%emt 0:00:03]} f4 {[%emt 0:00:11]} 19. Nf1 {[%emt 0:00:02]} g5 {[%emt 0:00:07]} 20. g3 {[%emt 0:00:06]} Nf6 {[%emt 0:00:10]} 21. g4 {[%emt 0:00:07]} h5 {[%emt 0:00:03]} 22. gxh5 {[%emt 0:00:08]} Nxh5 {[%emt 0:00:03]} 23. Rc2 {[%emt 0:00:09]} Qg7 {[%emt 0:00:03]} 24. Rg2 {[%emt 0:00:02]} Rf6 {[%emt 0:00:01]} 25. h4 {[%emt 0:00:08]} Rg6 {[%emt 0:00:03]} 26. Ree2 {[%emt 0:00:06]} Kf7 {[%emt 0:00:09]} 27. hxg5 {[%emt 0:00:06]} Rxg5 {[%emt 0:00:02]} 28. Rxg5 {[%emt 0:00:03]} Qxg5+ {[%emt 0:00:03]} 29. Rg2 {[%emt 0:00:01]} Qh4 {[%emt 0:00:07]} 30. Be1 {[%emt 0:00:14]} Qh3 {[%emt 0:00:03]} 31. Rh2 {[%emt 0:00:16]} Rg8+ {[%emt 0:00:09]} 32. Kf2 {[%emt 0:00:04]} Qg3+ {[%emt 0:00:18]} 33. Nxg3 {[%emt 0:00:02]} fxg3+ {[%emt 0:00:02]} 34. Kg2 {[%emt 0:00:03]} Nf4+ {[%emt 0:00:03]} 35. Kh1 {[%emt 0:00:09]} gxh2 {[%emt 0:00:02]} 36. Kxh2 {[%emt 0:00:08]} Rh8+ {[%emt 0:00:04]} 37. Kg1 {[%emt 0:00:06]} Rg8+ {[%emt 0:00:02]} 38. Kf1 {[%emt 0:00:02]} Bc8 {[%emt 0:00:03]} 39. Bf2 {[%emt 0:00:06]} Bh3+ {[%emt 0:00:03]} 40. Ke1 {[%emt 0:00:01]} Ng2+ {[%emt 0:00:03]} 41. Kd2 {[%emt 0:00:07]} Nf4 {[%emt 0:00:02]} 42. Qa4 {[%emt 0:00:09]} Rg2 {[%emt 0:00:05]} 43. Ke3 {[%emt 0:00:03]} Rg7 {[%emt 0:00:17]} 44. Qxa7 {[%emt 0:00:07]} Ng2+ {[%emt 0:00:03]} 45. Kd2 {[%emt 0:00:04]} Kg6 {[%emt 0:00:04]} 46. a4 {[%emt 0:00:04]} Rf7 {[%emt 0:00:04]} 47. a5 {[%emt 0:00:12]} bxa5 {[%emt 0:00:03]} 48. bxa5 {[%emt 0:00:06]} Rxf3 {[%emt 0:00:02]} 49. a6 {[%emt 0:00:04]} Nf4 {[%emt 0:00:08]} 50. Be3 {[%emt 0:00:06]} Ng2 {[%emt 0:00:05]} 51. Bg1 {[%emt 0:00:12]} Rf1 {[%emt 0:00:08]} 52. Qxc7 {[%emt 0:00:07]} Rxg1 {[%emt 0:00:03]} 53. Qxd6+ {[%emt 0:00:01]} Kh7 {[%emt 0:00:04]} 54. a7 {[%emt 0:00:02]} Ra1 {[%emt 0:00:03]} 55. Qxe5 {[%emt 0:00:13]} Ra2+ {[%emt 0:00:03]} 56. Kc3 {[%emt 0:00:02]} Rxa7 {[%emt 0:00:06]} 57. Qh5+ {[%emt 0:00:03]} Kg8 {[%emt 0:00:02]} 58. Qxh3 {[%emt 0:00:01]} Ra3+ {[%emt 0:00:04]} 59. Kd4 {[%emt 0:00:03]} Rxh3 {[%emt 0:00:02]} 60. d6 {[%emt 0:00:01]} Kf7 {[%emt 0:00:03]} 61. e5 {[%emt 0:00:03]} Ke6 {[%emt 0:00:02]} 62. Kc5 {[%emt 0:00:02]} Kxe5 {[%emt 0:00:06]} 63. d7 {[%emt 0:00:02]} Rd3 {[%emt 0:00:05]} 64. Kc6 {[%emt 0:00:01]} Ke6 {[%emt 0:00:02]} 65. c5 {[%emt 0:00:00]} Rxd7 {[%emt 0:00:04]} 66. Kb6 {[%emt 0:00:00]} Kd5 {[%emt 0:00:04]} 0-1

[Event "Queens Festival Europe 2022"]
[Site "Tornelo"]
[Date "2022.06.19"]
[Round "5.2"]
[White "Rybackova, Lucie"]
[Black "Subramanian, Anusha"]
[Result "1/2-1/2"]
[ECO "D10"]
[WhiteElo "1696"]
[BlackElo "1671"]
[Annotator "NA RC"]
[PlyCount "108"]
[EventDate "2022.06.19"]
[EventType "swiss"]
[EventCountry "NET"]
[SourceTitle "playchess.com"]
[Source "ChessBase"]
[SourceQuality "1"]
[TimeControl "180+2"]

1. d4 {[%emt 0:00:02]} d5 {[%emt 0:00:04]} 2. c4 {[%emt 0:00:04]} c6 {[%emt 0:00:01]} 3. cxd5 {[%emt 0:00:03]} cxd5 {[%emt 0:00:02]} 4. Nc3 {[%emt 0:00:03]} Nf6 {[%emt 0:00:02]} 5. Qc2 {[%emt 0:00:06]} Nc6 {[%emt 0:00:04]} 6. Nf3 {[%emt 0:00:04]} Bg4 {[%emt 0:00:07]} 7. Bf4 {[%emt 0:00:10]} a6 {[%emt 0:00:04]} 8. e3 {[%emt 0:00:04]} e6 {[%emt 0:00:03]} 9. Bd3 {[%emt 0:00:02]} Rc8 {[%emt 0:00:04]} 10. a3 {[%emt 0:00:12]} b5 {[%emt 0:00:10]} 11. Qe2 {[%emt 0:00:22]} Bd6 {[%emt 0:00:07]} 12. Bg3 {[%emt 0:00:14]} O-O {[%emt 0:00:12]} 13. O-O {[%emt 0:00:02]} Bxg3 {[%emt 0:00:05]} 14. hxg3 {[%emt 0:00:02]} Na5 {[%emt 0:00:12]} 15. Rac1 {[%emt 0:00:18]} Qb6 {[%emt 0:00:08]} 16. Na2 {[%emt 0:00:19]} Nc4 {[%emt 0:00:16]} 17. Bxc4 {[%emt 0:00:25]} bxc4 {[%emt 0:00:02]} 18. Qd2 {[%emt 0:00:07]} Ne4 {[%emt 0:00:04]} 19. Qc2 {[%emt 0:00:04]} Bf5 {[%emt 0:00:08]} 20. Qe2 {[%emt 0:00:13]} Nd6 {[%emt 0:00:04]} 21. Nc3 {[%emt 0:00:05]} Bd3 {[%emt 0:00:02]} 22. Qd2 {[%emt 0:00:05]} Bxf1 {[%emt 0:00:01]} 23. Kxf1 {[%emt 0:00:03]} Rb8 {[%emt 0:00:02]} 24. Rc2 {[%emt 0:00:04]} Rfc8 {[%emt 0:00:04]} 25. Ne5 {[%emt 0:00:03]} Qb7 {[%emt 0:00:24]} 26. Na4 {[%emt 0:00:10]} Ne4 {[%emt 0:00:13]} 27. Qe2 {[%emt 0:00:04]} Nf6 {[%emt 0:00:17]} 28. Nc5 {[%emt 0:00:05]} Qb5 {[%emt 0:00:02]} 29. g4 {[%emt 0:00:10]} Rc7 {[%emt 0:00:17]} 30. g5 {[%emt 0:00:04]} Nd7 {[%emt 0:00:01]} 31. Nexd7 {[%emt 0:00:03]} Rxd7 {[%emt 0:00:01]} 32. Nxd7 {[%emt 0:00:02]} Qxd7 {[%emt 0:00:00]} 33. Qf3 {[%emt 0:00:03]} Qb5 {[%emt 0:00:07]} 34. Qe2 {[%emt 0:00:01]} Qb7 {[%emt 0:00:13]} 35. f4 {[%emt 0:00:01]} g6 {[%emt 0:00:03]} 36. Qd2 {[%emt 0:00:04]} Qb3 {[%emt 0:00:03]} 37. Kf2 {[%emt 0:00:02]} Qa4 {[%emt 0:00:05]} 38. Qe2 {[%emt 0:00:01]} Rb3 {[%emt 0:00:03]} 39. Qd2 {[%emt 0:00:03]} Rd3 {[%emt 0:00:02]} 40. Qe2 {[%emt 0:00:01]} Qb3 {[%emt 0:00:02]} 41. Rd2 {[%emt 0:00:02]} Rxd2 {[%emt 0:00:04]} 42. Qxd2 {[%emt 0:00:01]} Qb5 {[%emt 0:00:00]} 43. Qc2 {[%emt 0:00:02]} a5 {[%emt 0:00:03]} 44. Qc3 {[%emt 0:00:02]} Kf8 {[%emt 0:00:05]} 45. Qc2 {[%emt 0:00:02]} Ke7 {[%emt 0:00:02]} 46. Qc3 {[%emt 0:00:02]} Kd6 {[%emt 0:00:03]} 47. Kf3 {[%emt 0:00:01]} a4 {[%emt 0:00:05]} 48. Ke2 {[%emt 0:00:04]} Kc6 {[%emt 0:00:05]} 49. Kd2 {[%emt 0:00:01]} Qb3 {[%emt 0:00:06]} 50. g3 {[%emt 0:00:04]} Qb5 {[%emt 0:00:05]} 51. Kc2 {[%emt 0:00:03]} Kb6 {[%emt 0:00:02]} 52. Kd2 {[%emt 0:00:04]} Kc6 {[%emt 0:00:02]} 53. Kc2 {[%emt 0:00:02]} Qb6 {[%emt 0:00:01]} 54. Kd2 {[%emt 0:00:01]} Qb5 {[%emt 0:00:02]} 1/2-1/2

[Event "Queens Festival Europe 2022"]
[Site "Tornelo"]
[Date "2022.06.19"]
[Round "5.2"]
[White "Pyun, Lindsay"]
[Black "Valiyeva, Asnad"]
[Result "1/2-1/2"]
[ECO "B13"]
[WhiteElo "1526"]
[BlackElo "1237"]
[Annotator "NA RC"]
[PlyCount "122"]
[EventDate "2022.06.19"]
[EventType "swiss"]
[EventCountry "NET"]
[SourceTitle "playchess.com"]
[Source "ChessBase"]
[SourceQuality "1"]
[TimeControl "180+2"]

1. e4 {[%emt 0:00:02]} c6 {[%emt 0:00:04]} 2. d4 {[%emt 0:00:03]} d5 {[%emt 0:00:02]} 3. exd5 {[%emt 0:00:00]} cxd5 {[%emt 0:00:02]} 4. Bd3 {[%emt 0:00:01]} Nc6 {[%emt 0:00:01]} 5. Nf3 {[%emt 0:00:02]} Nf6 {[%emt 0:00:02]} 6. c3 {[%emt 0:00:01]} Bg4 {[%emt 0:00:02]} 7. Bf4 {[%emt 0:00:01]} e6 {[%emt 0:00:02]} 8. h3 {[%emt 0:00:01]} Bh5 {[%emt 0:00:02]} 9. Nbd2 {[%emt 0:00:02]} Bd6 {[%emt 0:00:03]} 10. Bxd6 {[%emt 0:00:02]} Qxd6 {[%emt 0:00:02]} 11. O-O {[%emt 0:00:01]} O-O {[%emt 0:00:02]} 12. Re1 {[%emt 0:00:02]} Rfc8 {[%emt 0:00:04]} 13. Qb1 {[%emt 0:00:11]} Bg6 {[%emt 0:00:03]} 14. Ne5 {[%emt 0:00:03]} Ne7 {[%emt 0:00:09]} 15. Bxg6 {[%emt 0:00:05]} Nxg6 {[%emt 0:00:03]} 16. Qd3 {[%emt 0:00:03]} Nd7 {[%emt 0:00:03]} 17. Nxg6 {[%emt 0:00:10]} hxg6 {[%emt 0:00:03]} 18. Nf3 {[%emt 0:00:01]} Qc6 {[%emt 0:00:04]} 19. Ne5 {[%emt 0:00:02]} Nxe5 {[%emt 0:00:03]} 20. Rxe5 {[%emt 0:00:01]} Qb6 {[%emt 0:00:04]} 21. Re2 {[%emt 0:00:03]} Qc6 {[%emt 0:00:05]} 22. a4 {[%emt 0:00:09]} a6 {[%emt 0:00:06]} 23. Ree1 {[%emt 0:00:07]} Qc4 {[%emt 0:00:05]} 24. Qxc4 {[%emt 0:00:03]} Rxc4 {[%emt 0:00:03]} 25. a5 {[%emt 0:00:05]} Rac8 {[%emt 0:00:03]} 26. Ra3 {[%emt 0:00:04]} Kf8 {[%emt 0:00:04]} 27. Rea1 {[%emt 0:00:01]} R4c6 {[%emt 0:00:04]} 28. Rb3 {[%emt 0:00:02]} R8c7 {[%emt 0:00:02]} 29. Ra4 {[%emt 0:00:04]} Rd6 {[%emt 0:00:05]} 30. Rab4 {[%emt 0:00:02]} Rdd7 {[%emt 0:00:02]} 31. Rb6 {[%emt 0:00:02]} Ke8 {[%emt 0:00:02]} 32. Kf1 {[%emt 0:00:03]} Kd8 {[%emt 0:00:02]} 33. Ke2 {[%emt 0:00:04]} Kc8 {[%emt 0:00:03]} 34. R6b4 {[%emt 0:00:07]} Rc6 {[%emt 0:00:04]} 35. Kd3 {[%emt 0:00:02]} Rdc7 {[%emt 0:00:02]} 36. Rb6 {[%emt 0:00:13]} Rxb6 {[%emt 0:00:06]} 37. Rxb6 {[%emt 0:00:02]} Rc6 {[%emt 0:00:02]} 38. Rxc6+ {[%emt 0:00:03]} bxc6 {[%emt 0:00:02]} 39. b4 {[%emt 0:00:04]} Kc7 {[%emt 0:00:02]} 40. f4 {[%emt 0:00:05]} f6 {[%emt 0:00:02]} 41. Ke3 {[%emt 0:00:02]} Kd6 {[%emt 0:00:03]} 42. g4 {[%emt 0:00:05]} Kc7 {[%emt 0:00:05]} 43. h4 {[%emt 0:00:04]} Kd7 {[%emt 0:00:02]} 44. g5 {[%emt 0:00:07]} f5 {[%emt 0:00:03]} 45. Kf3 {[%emt 0:00:02]} Kc7 {[%emt 0:00:02]} 46. Ke3 {[%emt 0:00:01]} Kb7 {[%emt 0:00:02]} 47. Kf3 {[%emt 0:00:01]} Kc7 {[%emt 0:00:01]} 48. Ke3 {[%emt 0:00:01]} Kd6 {[%emt 0:00:01]} 49. Kf3 {[%emt 0:00:01]} Ke7 {[%emt 0:00:02]} 50. Kg3 {[%emt 0:00:01]} Kd8 {[%emt 0:00:02]} 51. Kh3 {[%emt 0:00:18]} Ke7 {[%emt 0:00:03]} 52. Kg3 {[%emt 0:00:02]} Kd6 {[%emt 0:00:02]} 53. Kf3 {[%emt 0:00:10]} Kd7 {[%emt 0:00:03]} 54. Kg3 {[%emt 0:00:03]} Kc7 {[%emt 0:00:02]} 55. Kf3 {[%emt 0:00:01]} Kd8 {[%emt 0:00:02]} 56. Kg3 {[%emt 0:00:01]} Ke8 {[%emt 0:00:01]} 57. Kf3 {[%emt 0:00:01]} Kf7 {[%emt 0:00:02]} 58. Kg3 {[%emt 0:00:01]} Kf8 {[%emt 0:00:01]} 59. Kf3 {[%emt 0:00:01]} Kf7 {[%emt 0:00:02]} 60. Kg3 {[%emt 0:00:01]} Kf8 {[%emt 0:00:01]} 61. Kf3 {[%emt 0:00:07]} Kf7 {[%emt 0:00:02]} 1/2-1/2

[Event "Queens Festival Europe 2022"]
[Site "Tornelo"]
[Date "2022.06.19"]
[Round "5.3"]
[White "Head, Louise"]
[Black "Ibrahimova, Sabina"]
[Result "0-1"]
[ECO "E73"]
[WhiteElo "2025"]
[BlackElo "2146"]
[Annotator "NA RC"]
[PlyCount "68"]
[EventDate "2022.06.19"]
[EventType "swiss"]
[EventCountry "NET"]
[SourceTitle "playchess.com"]
[Source "ChessBase"]
[SourceQuality "1"]
[TimeControl "180+2"]

1. d4 {[%emt 0:00:02]} Nf6 {[%emt 0:00:05]} 2. c4 {[%emt 0:00:02]} g6 {[%emt 0:00:01]} 3. Nc3 {[%emt 0:00:01]} Bg7 {[%emt 0:00:02]} 4. e4 {[%emt 0:00:02]} d6 {[%emt 0:00:01]} 5. Be3 {[%emt 0:00:02]} O-O {[%emt 0:00:05]} 6. Be2 {[%emt 0:00:01]} e5 {[%emt 0:00:07]} 7. d5 {[%emt 0:00:01]} Na6 {[%emt 0:00:04]} 8. g4 {[%emt 0:00:03]} Nc5 {[%emt 0:00:03]} 9. Bf3 {[%emt 0:00:02]} a5 {[%emt 0:00:14]} 10. h4 {[%emt 0:00:02]} c6 {[%emt 0:00:14]} 11. g5 {[%emt 0:00:09]} Ne8 {[%emt 0:00:05]} 12. h5 {[%emt 0:00:01]} cxd5 {[%emt 0:00:22]} 13. cxd5 {[%emt 0:00:09]} a4 {[%emt 0:00:19]} 14. Qd2 {[%emt 0:00:24]} b5 {[%emt 0:00:11]} 15. Bxc5 {[%emt 0:00:12]} dxc5 {[%emt 0:00:03]} 16. Nxb5 {[%emt 0:00:02]} Ba6 {[%emt 0:00:04]} 17. Be2 {[%emt 0:00:06]} Bxb5 {[%emt 0:00:35]} 18. Bxb5 {[%emt 0:00:03]} Nd6 {[%emt 0:00:01]} 19. Bd3 {[%emt 0:00:06]} c4 {[%emt 0:00:02]} 20. Bc2 {[%emt 0:00:05]} Rb8 {[%emt 0:00:10]} 21. Rb1 {[%emt 0:00:06]} Qc7 {[%emt 0:00:04]} 22. f3 {[%emt 0:00:06]} Rxb2 {[%emt 0:00:23]} 23. Rxb2 {[%emt 0:00:11]} c3 {[%emt 0:00:01]} 24. Qc1 {[%emt 0:00:04]} cxb2 {[%emt 0:00:03]} 25. Qb1 {[%emt 0:00:36]} Qc3+ {[%emt 0:00:09]} 26. Kf2 {[%emt 0:00:06]} Nc4 {[%emt 0:00:03]} 27. Ne2 {[%emt 0:00:18]} Qe3+ {[%emt 0:00:05]} 28. Ke1 {[%emt 0:00:05]} a3 {[%emt 0:00:08]} 29. Bb3 {[%emt 0:00:10]} Nd2 {[%emt 0:00:03]} 30. Qd1 {[%emt 0:00:09]} b1=Q {[%emt 0:00:04]} 31. Qxb1 {[%emt 0:00:01]} Nxb1 {[%emt 0:00:02]} 32. Bd1 {[%emt 0:00:04]} Nc3 {[%emt 0:00:02]} 33. Kf1 {[%emt 0:00:02]} Nxd1 {[%emt 0:00:02]} 34. hxg6 {[%emt 0:00:02]} Qf2# {[%emt 0:00:02]} 0-1

[Event "Queens Festival Europe 2022"]
[Site "Tornelo"]
[Date "2022.06.19"]
[Round "5.3"]
[White "Shuqja, Klean"]
[Black "Shabanaj, Eglantina"]
[Result "1-0"]
[ECO "C90"]
[WhiteElo "1839"]
[BlackElo "1986"]
[Annotator "NA RC"]
[PlyCount "63"]
[EventDate "2022.06.19"]
[EventType "swiss"]
[EventCountry "NET"]
[SourceTitle "playchess.com"]
[Source "ChessBase"]
[SourceQuality "1"]
[TimeControl "180+2"]

1. e4 {[%emt 0:00:02]} e5 {[%emt 0:00:07]} 2. Nf3 {[%emt 0:00:02]} Nc6 {[%emt 0:00:03]} 3. Bb5 {[%emt 0:00:05]} a6 {[%emt 0:00:03]} 4. Ba4 {[%emt 0:00:02]} b5 {[%emt 0:00:02]} 5. Bb3 {[%emt 0:00:01]} d6 {[%emt 0:00:03]} 6. O-O {[%emt 0:00:02]} Be7 {[%emt 0:00:05]} 7. c3 {[%emt 0:00:02]} Nf6 {[%emt 0:00:08]} 8. d3 {[%emt 0:00:02]} O-O {[%emt 0:00:01]} 9. Nbd2 {[%emt 0:00:03]} Na5 {[%emt 0:00:05]} 10. Bc2 {[%emt 0:00:02]} c5 {[%emt 0:00:03]} 11. Re1 {[%emt 0:00:46]} Bg4 {[%emt 0:00:05]} 12. Nf1 {[%emt 0:00:02]} Nc6 {[%emt 0:00:05]} 13. Ng3 {[%emt 0:00:02]} d5 {[%emt 0:00:13]} 14. h3 {[%emt 0:00:05]} Bxf3 {[%emt 0:00:09]} 15. Qxf3 {[%emt 0:00:02]} dxe4 {[%emt 0:00:07]} 16. dxe4 {[%emt 0:00:04]} g6 {[%emt 0:00:14]} 17. Bh6 {[%emt 0:00:08]} Re8 {[%emt 0:00:05]} 18. Nf5 {[%emt 0:00:07]} Bf8 {[%emt 0:00:21]} 19. Rad1 {[%emt 0:00:15]} Qc7 {[%emt 0:00:13]} 20. Bg5 {[%emt 0:00:32]} Nh5 {[%emt 0:00:26]} 21. Ne3 {[%emt 0:00:08]} Nf4 {[%emt 0:00:25]} 22. Bxf4 {[%emt 0:00:13]} exf4 {[%emt 0:00:05]} 23. Nd5 {[%emt 0:00:01]} Qe5 {[%emt 0:00:03]} 24. Qxf4 {[%emt 0:00:08]} Qxf4 {[%emt 0:00:05]} 25. Nxf4 {[%emt 0:00:00]} Bh6 {[%emt 0:00:08]} 26. Nd5 {[%emt 0:00:02]} Red8 {[%emt 0:00:10]} 27. Nf6+ {[%emt 0:00:04]} Kg7 {[%emt 0:00:01]} 28. Ng4 {[%emt 0:00:03]} Bg5 {[%emt 0:00:04]} 29. Ne3 {[%emt 0:00:16]} Ne5 {[%emt 0:00:06]} 30. Nd5 {[%emt 0:00:05]} Nc6 {[%emt 0:00:11]} 31. f4 {[%emt 0:00:05]} Bh4 {[%emt 0:00:03]} 32. Re3 {[%emt 0:00:02]} 1-0

[Event "Queens Festival Europe 2022"]
[Site "Tornelo"]
[Date "2022.06.19"]
[Round "5.3"]
[White "Omeri, Eklea"]
[Black "Lampard, Alice"]
[Result "1/2-1/2"]
[ECO "D91"]
[WhiteElo "1525"]
[BlackElo "1756"]
[Annotator "NA RC"]
[PlyCount "117"]
[EventDate "2022.06.19"]
[EventType "swiss"]
[EventCountry "NET"]
[SourceTitle "playchess.com"]
[Source "ChessBase"]
[SourceQuality "1"]
[TimeControl "180+2"]

1. d4 {[%emt 0:00:02]} Nf6 {[%emt 0:00:05]} 2. c4 {[%emt 0:00:02]} g6 {[%emt 0:00:02]} 3. Nc3 {[%emt 0:00:02]} d5 {[%emt 0:00:01]} 4. Nf3 {[%emt 0:00:03]} Bg7 {[%emt 0:00:03]} 5. Bg5 {[%emt 0:00:03]} dxc4 {[%emt 0:00:06]} 6. e3 {[%emt 0:00:03]} O-O {[%emt 0:00:02]} 7. Bxc4 {[%emt 0:00:03]} c5 {[%emt 0:00:09]} 8. Bxf6 {[%emt 0:00:07]} Bxf6 {[%emt 0:00:10]} 9. O-O {[%emt 0:00:04]} cxd4 {[%emt 0:00:03]} 10. Nxd4 {[%emt 0:00:04]} a6 {[%emt 0:00:10]} 11. Nde2 {[%emt 0:00:06]} Nc6 {[%emt 0:00:11]} 12. Qxd8 {[%emt 0:00:05]} Rxd8 {[%emt 0:00:02]} 13. Rad1 {[%emt 0:00:06]} b5 {[%emt 0:00:07]} 14. Bd5 {[%emt 0:00:06]} Bb7 {[%emt 0:00:04]} 15. b3 {[%emt 0:00:26]} e6 {[%emt 0:00:05]} 16. Bf3 {[%emt 0:00:05]} Na5 {[%emt 0:00:12]} 17. Bxb7 {[%emt 0:00:04]} Nxb7 {[%emt 0:00:02]} 18. Rxd8+ {[%emt 0:00:04]} Rxd8 {[%emt 0:00:02]} 19. Rd1 {[%emt 0:00:05]} Rxd1+ {[%emt 0:00:05]} 20. Nxd1 {[%emt 0:00:03]} Kf8 {[%emt 0:00:01]} 21. Kf1 {[%emt 0:00:03]} Ke7 {[%emt 0:00:02]} 22. Ke1 {[%emt 0:00:02]} Nd6 {[%emt 0:00:04]} 23. f3 {[%emt 0:00:05]} Kd7 {[%emt 0:00:08]} 24. Kd2 {[%emt 0:00:02]} Nf5 {[%emt 0:00:04]} 25. Kd3 {[%emt 0:00:05]} Bg5 {[%emt 0:00:11]} 26. Ng3 {[%emt 0:00:12]} Nh4 {[%emt 0:00:12]} 27. Ne4 {[%emt 0:00:09]} Be7 {[%emt 0:00:01]} 28. Ndf2 {[%emt 0:00:19]} f5 {[%emt 0:00:15]} 29. Nd2 {[%emt 0:00:12]} Nxg2 {[%emt 0:00:04]} 30. e4 {[%emt 0:00:07]} Ne1+ {[%emt 0:00:06]} 31. Ke2 {[%emt 0:00:04]} Nc2 {[%emt 0:00:02]} 32. Nd3 {[%emt 0:00:08]} Nd4+ {[%emt 0:00:10]} 33. Ke3 {[%emt 0:00:04]} Nc6 {[%emt 0:00:03]} 34. f4 {[%emt 0:00:09]} a5 {[%emt 0:00:21]} 35. exf5 {[%emt 0:00:07]} exf5 {[%emt 0:00:06]} 36. Nf3 {[%emt 0:00:03]} h6 {[%emt 0:00:11]} 37. Nfe5+ {[%emt 0:00:03]} Nxe5 {[%emt 0:00:03]} 38. Nxe5+ {[%emt 0:00:02]} Ke6 {[%emt 0:00:02]} 39. Nxg6 {[%emt 0:00:02]} Bc5+ {[%emt 0:00:02]} 40. Kf3 {[%emt 0:00:08]} a4 {[%emt 0:00:01]} 41. Nh4 {[%emt 0:00:05]} axb3 {[%emt 0:00:03]} 42. axb3 {[%emt 0:00:02]} Bg1 {[%emt 0:00:03]} 43. h3 {[%emt 0:00:03]} Kf6 {[%emt 0:00:06]} 44. Kg2 {[%emt 0:00:03]} Be3 {[%emt 0:00:03]} 45. Kf3 {[%emt 0:00:02]} Bd2 {[%emt 0:00:02]} 46. Ng2 {[%emt 0:00:02]} b4 {[%emt 0:00:04]} 47. Ke2 {[%emt 0:00:02]} Bc3 {[%emt 0:00:03]} 48. Ne3 {[%emt 0:00:04]} Ke6 {[%emt 0:00:03]} 49. Kd3 {[%emt 0:00:03]} Bf6 {[%emt 0:00:07]} 50. Kc4 {[%emt 0:00:07]} Bc3 {[%emt 0:00:03]} 51. Kd3 {[%emt 0:00:08]} Bf6 {[%emt 0:00:02]} 52. Kc4 {[%emt 0:00:02]} Bc3 {[%emt 0:00:02]} 53. Kc5 {[%emt 0:00:02]} Bd2 {[%emt 0:00:03]} 54. Kd4 {[%emt 0:00:05]} Bc3+ {[%emt 0:00:08]} 55. Kc4 {[%emt 0:00:03]} Bd2 {[%emt 0:00:01]} 56. Kd3 {[%emt 0:00:02]} Bc3 {[%emt 0:00:01]} 57. Kc4 {[%emt 0:00:01]} Bd2 {[%emt 0:00:02]} 58. Kd3 {[%emt 0:00:06]} Bc3 {[%emt 0:00:02]} 59. Kc4 {[%emt 0:00:02]} 1/2-1/2